bitfinex/quotes_ETHUSD_20240717
["timestamp","ask_amount","ask_price","bid_price","bid_amount"]
[1721242716082,0.6131974,3420.1,3420.0,1.047]
[1721242717359,0.91799938,3420.2,3420.0,1.047]
[1721242717748,0.03558792,3420.1,3420.0,1.047]
[1721242717947,0.64903761,3420.1,3420.0,1.047]
[1721242718147,0.03558792,3420.1,3420.0,1.047]
[1721242718343,0.03558792,3420.1,3419.9,3.47405]
[1721242718550,0.61360281,3420.0,3419.9,3.47405]
[1721242719187,0.64919073,3420.0,3419.9,3.47405]
[1721242720604,0.03558792,3420.0,3419.9,3.47405]
[1721242720886,0.64959186,3420.0,3419.9,3.47405]
[1721242721397,0.03558792,3420.0,3419.9,3.47405]
[1721242722265,0.03558792,3420.0,3419.9,7.289323]
[1721242722461,0.61401442,3420.0,3419.9,7.289323]
[1721242722705,0.64959908,3420.0,3419.9,0.55]
[1721242722996,0.64959908,3420.0,3419.5,2.92435]
[1721242722997,0.95358404,3420.0,3419.5,2.92435]
[1721242723201,0.61404744,3419.8,3419.6,3.47431]
[1721242723702,0.6496321,3419.7,3419.6,3.47431]
[1721242725392,0.03558466,3419.7,3419.4,2.92444]
[1721242725601,0.614068,3419.6,3419.5,0.55]
[1721242725768,0.95358404,3419.7,3419.5,0.55]
[1721242725769,0.614068,3419.7,3419.5,0.55]
[1721242725975,0.64965266,3419.6,3419.5,0.55]
[1721242726158,0.03558466,3419.6,3419.5,0.55]
[1721242727900,0.03558466,3419.6,3419.5,6.58234493]
[1721242728061,0.614068,3419.8,3419.7,2.92423]
[1721242728263,0.614068,3419.9,3419.7,3.47423]
[1721242728498,0.614068,3419.8,3419.7,2.92423]
[1721242728796,1.53500792,3420.3,3419.7,4.13541126]
[1721242728797,0.614068,3419.9,3419.7,4.13541126]
[1721242730392,0.614068,3419.9,3419.8,2.92414]
[1721242730594,0.614068,3419.9,3419.8,6.39828]
[1721242730794,0.614068,3420.0,3419.9,2.92406]
[1721242730967,0.614068,3420.0,3419.9,3.47406]
[1721242731172,1.53484274,3420.4,3420.0,2.92397]
[1721242731173,1.22587318,3420.2,3420.0,2.92397]
[1721242731372,0.92095662,3420.1,3420.0,2.92397]
[1721242731572,0.92095662,3420.1,3420.0,3.47397]
[1721242732499,3.54887318,3420.2,3420.0,0.55]
[1721242732789,0.03552759,3420.1,3419.9,0.55]
[1721242732990,0.92099651,3420.0,3419.9,0.55]
[1721242733562,0.9565241,3420.0,3419.9,0.55]
[1721242736688,0.03552759,3420.0,3419.9,0.55]
[1721242737219,0.9565241,3420.0,3419.9,0.55]
[1721242738680,0.03434334,3420.0,3419.9,0.55]
[1721242738984,0.03434334,3420.0,3419.9,1.423894]
[1721242739297,1.22587318,3420.2,3419.9,1.423894]
[1721242739604,0.03431398,3420.0,3419.9,1.423894]
[1721242739808,1.22587318,3420.2,3419.9,1.423894]
[1721242740009,0.03431724,3420.0,3419.9,1.423894]
[1721242740210,1.22587318,3420.2,3419.9,1.423894]
[1721242740423,0.03431724,3420.0,3419.9,1.423894]
[1721242740575,1.22587318,3420.3,3419.9,2.470894]
[1721242740779,1.22587318,3420.3,3419.9,1.423894]
[1721242740780,0.03431724,3420.0,3419.9,1.423894]
[1721242741021,0.6140079,3420.0,3419.9,5.394924]
[1721242741225,0.64832514,3420.0,3419.9,5.394924]
[1721242742279,0.6140079,3420.0,3419.9,5.394924]
[1721242742590,0.0343466,3420.0,3419.9,5.394924]
[1721242742823,0.0343466,3420.0,3419.9,4.52103]
[1721242743018,1.22587318,3420.2,3419.9,4.52103]
[1721242743204,0.0343466,3420.0,3419.9,3.47403]
[1721242743410,1.22587318,3420.3,3419.9,4.52103]
[1721242743723,1.22587318,3420.3,3420.2,1.047]
[1721242746332,1.26021978,3420.3,3420.2,1.047]
[1721242748607,0.0343466,3420.3,3420.2,1.047]
[1721242749598,0.0343466,3420.3,3420.2,1.597]
[1721242749599,0.95543398,3420.3,3420.2,1.597]
[1721242749803,0.0343466,3420.3,3420.2,1.597]
[1721242750344,0.95542952,3420.3,3420.2,1.597]
[1721242752349,0.0343466,3420.3,3420.2,1.597]
[1721242752556,0.95536213,3420.3,3420.2,1.597]
[1721242754702,0.95536213,3420.3,3420.2,6.9472]
[1721242754929,0.61394324,3420.7,3420.6,5.84692]
[1721242755144,0.92101553,3420.9,3420.6,5.84692]
[1721242755145,0.61394324,3420.9,3420.7,5.74007]
[1721242755308,0.61394324,3421.0,3420.9,2.9232]
[1721242755637,0.61394324,3421.2,3421.0,2.92312]
[1721242755819,0.61394324,3421.2,3421.1,3.97003]
[1721242756025,0.61394324,3421.2,3421.1,4.52003]
[1721242756506,0.61394324,3421.4,3421.1,4.52003]
[1721242756834,0.92101553,3421.5,3421.3,1.047]
[1721242757143,0.61303232,3421.4,3421.3,1.047]
[1721242757344,0.92101553,3421.5,3421.3,1.047]
[1721242757549,0.61276891,3421.4,3421.3,1.047]
[1721242758613,0.61276891,3421.5,3421.3,1.047]
[1721242758808,0.61276891,3421.5,3421.4,1.047]
[1721242759764,0.92101553,3421.7,3421.4,1.047]
[1721242759765,0.61276891,3421.7,3421.4,3.96978]
[1721242760051,0.61276891,3421.6,3421.5,0.55]
[1721242760205,0.92101553,3421.8,3421.5,0.55]
[1721242760206,0.61276891,3421.7,3421.6,1.047]
[1721242760442,0.61276891,3421.8,3421.6,1.047]
[1721242761010,0.61276891,3421.7,3421.6,1.047]
[1721242761237,0.61276891,3421.8,3421.6,1.047]
[1721242761447,0.61276891,3421.8,3421.7,1.047]
[1721242762435,0.61276891,3421.9,3421.7,1.047]
[1721242762754,0.03347557,3421.8,3421.5,0.55]
[1721242762956,0.03347557,3421.8,3421.7,1.047]
[1721242765855,0.03349349,3421.8,3421.7,1.047]
[1721242766054,0.61276891,3422.2,3421.7,1.047]
[1721242766256,0.61276891,3422.2,3422.1,1.047]
[1721242766586,0.6462624,3422.2,3422.1,1.047]
[1721242767798,0.03349349,3422.2,3422.1,1.047]
[1721242768164,0.61276891,3422.3,3422.1,1.047]
[1721242768369,0.03360432,3422.2,3422.1,1.047]
[1721242768573,0.61276891,3422.3,3422.1,1.047]
[1721242768772,0.03360432,3422.2,3422.1,1.047]
[1721242769155,0.61276891,3422.3,3422.1,1.047]
[1721242769356,0.03360432,3422.2,3422.1,1.047]
[1721242769555,0.61276891,3422.3,3422.1,1.047]
[1721242769756,0.03362062,3422.2,3422.1,1.047]
[1721242769983,0.61276891,3422.3,3422.1,1.047]
[1721242770170,0.03362062,3422.2,3422.1,1.047]
[1721242770567,0.64638953,3422.2,3422.1,1.047]
[1721242770796,0.61276891,3422.3,3422.1,1.047]
[1721242770983,0.03361899,3422.2,3422.1,1.047]
[1721242771489,0.03361736,3422.2,3422.1,1.047]
[1721242771722,0.61276891,3422.3,3422.1,1.047]
[1721242771902,5.23343,3422.4,3422.1,1.047]
[1721242771903,0.03361736,3422.2,3422.1,1.047]
[1721242772195,5.84619891,3422.4,3422.1,1.047]
[1721242772361,0.03361736,3422.2,3422.1,1.047]
[1721242773004,0.61276891,3422.4,3422.1,1.047]
[1721242773189,0.03361736,3422.2,3421.8,2.92243]
[1721242773388,0.61276891,3422.5,3422.1,1.047]
[1721242773593,0.61276891,3422.5,3422.3,1.047]
[1721242774409,0.61276891,3422.6,3422.3,1.047]
[1721242774569,4.14740318,3422.9,3421.5,0.55]
[1721242774570,0.61276891,3422.9,3422.5,1.047]
[1721242774905,0.61276891,3422.9,3422.8,1.047]
[1721242775198,0.61276891,3423.0,3422.8,1.047]
[1721242775397,2.92118,3423.3,3422.9,1.047]
[1721242775398,0.61276891,3423.1,3422.9,1.047]
[1721242775617,3.53577318,3423.4,3423.0,1.047]
[1721242775618,0.61276891,3423.2,3423.0,1.047]
[1721242775817,3.23091553,3423.4,3423.1,1.047]
[1721242775818,2.92266891,3423.4,3423.1,1.047]
[1721242775995,2.92266891,3423.4,3423.3,1.047]
[1721242776192,5.84373891,3423.4,3423.3,1.047]
[1721242776394,5.23097,3423.4,3423.3,1.047]
[1721242776592,2.3099,3423.4,3423.3,1.047]
[1721242776788,2.92102,3423.5,3423.3,1.047]
[1721242777605,2.95476881,3423.4,3423.3,1.047]
[1721242777809,0.03369881,3423.4,3423.3,1.047]
[1721242778197,2.87406891,3423.8,3423.3,1.047]
[1721242778402,2.87406891,3423.8,3423.6,1.047]
[1721242778403,5.79481891,3423.8,3423.6,1.047]
[1721242779126,0.61276891,3423.9,3423.6,1.047]
[1721242779291,2.92073,3423.8,3423.6,1.047]
[1721242779827,2.4545,3423.6,3423.4,1.047]
[1721242779986,5.37546,3423.6,3423.1,1.047]
[1721242780182,2.921,3423.5,3423.1,1.047]
[1721242783334,5.84206,3423.5,3423.1,1.047]
[1721242784031,2.92118,3423.3,3423.1,1.047]
[1721242786264,2.92124,3423.2,3423.1,1.047]
[1721242786553,2.92124,3423.2,3422.6,1.047]
[1721242786554,2.9215,3422.9,3422.6,1.047]
[1721242787541,2.9215,3422.9,3422.8,1.047]
[1721242788161,2.9215,3422.9,3422.6,1.047]
[1721242788748,2.9215,3422.9,3422.8,1.047]
[1721242789567,2.3772,3422.9,3421.3,2.2764]
[1721242789853,2.3772,3422.9,3422.0,1.047]
[1721242789854,2.92203,3422.3,3422.0,1.047]
[1721242790658,2.92203,3422.3,3422.2,1.047]
[1721242791102,2.922,3422.4,3422.2,1.047]
[1721242792696,0.03390401,3422.3,3422.2,1.047]
[1721242793298,2.95591401,3422.3,3422.2,1.047]
[1721242794514,0.03390401,3422.3,3422.2,1.047]
[1721242794726,2.92177,3422.6,3422.2,1.047]
[1721242794873,2.92177,3422.6,3422.4,1.047]
[1721242796025,2.92177,3422.6,3422.2,1.047]
[1721242796225,2.92185,3422.5,3422.2,1.047]
[1721242798598,3.53461891,3422.5,3422.2,1.047]
[1721242799509,0.61276891,3422.4,3422.2,1.047]
[1721242800454,2.9221,3422.2,3421.9,1.047]
[1721242800625,3.53370242,3422.2,3421.9,1.047]
[1721242801097,0.61160242,3422.1,3421.9,1.047]
[1721242801298,0.61160242,3422.1,3421.4,2.4767]
[1721242801299,2.92226,3422.0,3421.7,1.047]
[1721242801494,3.53386242,3422.0,3421.7,1.047]
[1721242802143,3.53386242,3422.0,3421.9,1.047]
[1721242802295,0.61160242,3422.0,3421.9,1.047]
[1721242802503,0.61160242,3422.1,3421.9,1.047]
[1721242802837,0.61160242,3422.1,3422.0,1.047]
[1721242803735,0.92101553,3422.2,3422.0,1.047]
[1721242803903,2.92202,3422.3,3422.0,1.047]
[1721242803904,0.61175163,3422.1,3422.0,1.047]
[1721242804100,1.52922568,3422.6,3422.1,5.19928]
[1721242804101,0.61175163,3422.6,3422.1,5.19928]
[1721242804331,0.61175163,3422.8,3422.5,1.047]
[1721242804514,0.92101553,3423.0,3422.7,1.047]
[1721242804716,0.92101553,3422.9,3422.7,1.047]
[1721242805331,0.92101553,3422.8,3422.7,1.047]
[1721242805575,3.84259553,3422.8,3422.7,1.047]
[1721242805711,2.92158,3422.8,3422.7,1.047]
[1721242805909,3.06558,3422.8,3422.7,1.047]
[1721242806844,4.29145318,3422.8,3422.5,1.047]
[1721242807046,0.6118072,3422.6,3422.5,1.047]
[1721242807248,0.91771363,3422.7,3422.5,1.047]
[1721242807537,0.61182949,3422.6,3422.5,1.047]
[1721242807736,0.61182199,3422.6,3422.5,1.047]
[1721242808220,0.61182199,3422.6,3422.1,2.2771]
[1721242808422,0.61182199,3422.6,3422.2,0.95394523]
[1721242808613,0.61182199,3422.5,3422.1,2.2771]
[1721242808815,0.61182199,3422.6,3422.2,2.92203]
[1721242809145,0.75582199,3422.8,3422.4,2.92192]
[1721242809335,0.75582199,3422.8,3422.5,0.55]
[1721242810039,0.61182199,3422.8,3422.5,0.55]
[1721242810348,0.61182199,3422.8,3422.6,2.3526]
[1721242810931,0.61182199,3422.8,3422.6,5.27431]
[1721242811146,0.61182199,3423.1,3422.8,2.3422]
[1721242811348,0.61182199,3423.1,3422.9,3.47148]
[1721242811548,0.61182199,3423.2,3423.0,0.832368]
[1721242811841,0.61182199,3423.3,3423.0,0.832368]
[1721242813337,0.61182199,3423.2,3423.0,0.832368]
[1721242813837,0.61182199,3423.3,3423.0,0.832368]
[1721242814039,0.61182199,3423.3,3422.9,0.55]
[1721242814240,0.61182199,3423.2,3422.9,3.47149]
[1721242814450,0.91771363,3423.4,3422.9,3.47149]
[1721242814451,0.61182199,3423.3,3422.9,3.47149]
[1721242814958,0.61182199,3423.4,3422.9,3.47149]
[1721242816823,0.61182199,3423.5,3422.9,3.47149]
[1721242817030,0.61182199,3423.5,3423.0,1.12453]
[1721242817763,0.91771363,3423.6,3423.0,1.12453]
[1721242817764,0.61182199,3423.4,3423.0,1.12453]
[1721242817961,0.61182199,3423.5,3423.0,1.12453]
[1721242822347,0.61182199,3423.6,3423.0,1.12453]
[1721242823288,0.61182199,3423.6,3423.3,2.92114]
[1721242823443,0.61182199,3423.7,3423.4,0.292114]
[1721242824048,0.61182199,3423.8,3423.4,0.292114]
[1721242824250,0.61182199,3423.8,3423.3,5.21304]
[1721242825660,0.61182199,3423.8,3423.3,2.2919]
[1721242826291,0.61182199,3423.7,3422.9,5.82452]
[1721242827749,0.61182199,3423.7,3423.0,2.92141]
[1721242830257,0.61182199,3423.7,3423.5,1.046]
[1721242830678,3.53255199,3423.8,3423.5,1.046]
[1721242831004,0.61182199,3423.7,3423.5,1.046]
[1721242831214,3.53255199,3423.8,3423.5,1.046]
[1721242832080,0.61182199,3423.7,3423.5,1.046]
[1721242832410,3.53255199,3423.8,3423.5,1.046]
[1721242833289,0.61182199,3423.7,3423.5,1.046]
[1721242833494,3.53255199,3423.8,3423.5,1.046]
[1721242834523,0.61182199,3423.7,3423.5,1.046]
[1721242834821,0.61182199,3423.6,3423.5,1.046]
[1721242836604,3.02312199,3423.6,3423.3,1.046]
[1721242836948,2.92134,3423.1,3422.7,1.046]
[1721242837324,3.53225145,3423.1,3422.7,1.046]
[1721242837849,3.53225145,3423.1,3422.9,1.046]
[1721242840309,0.61091145,3423.2,3423.1,1.046]
[1721242842039,0.61091145,3423.3,3423.1,3.5265]
[1721242842242,0.61091145,3423.3,3423.1,4.463451]
[1721242843203,0.61091145,3423.2,3423.1,4.463451]
[1721242844006,0.61091145,3423.3,3423.1,4.463451]
[1721242844207,0.61091145,3423.3,3423.2,1.046]
[1721242844513,0.91771363,3423.4,3423.2,1.046]
[1721242844744,1.22587318,3423.5,3423.2,1.046]
[1721242844745,0.91771363,3423.3,3423.2,1.046]
[1721242845304,0.61156507,3423.3,3423.2,1.046]
[1721242845542,0.91771363,3423.4,3423.2,1.046]
[1721242845708,0.91771363,3423.3,3423.2,1.046]
[1721242846126,0.91771363,3423.3,3422.8,5.18558]
[1721242846127,0.91771363,3423.3,3423.0,1.046]
[1721242846319,0.61171133,3423.1,3423.0,1.046]
[1721242847456,0.91771363,3423.2,3423.0,1.046]
[1721242847863,0.61196049,3423.1,3423.0,1.046]
[1721242848172,0.61196418,3423.1,3423.0,1.046]
[1721242848370,0.91771363,3423.2,3423.0,1.046]
[1721242849668,0.91771363,3423.1,3423.0,1.046]
[1721242849849,0.91771363,3423.2,3423.0,1.669158]
[1721242850046,0.61242759,3423.1,3423.0,1.669158]
[1721242850244,0.61242759,3423.1,3423.0,2.219158]
[1721242850460,0.91771363,3423.2,3423.0,2.219158]
[1721242850848,0.6124719,3423.1,3423.0,1.669158]
[1721242851068,0.91771363,3423.1,3423.0,1.046]
[1721242852577,1.22587318,3423.2,3423.0,1.046]
[1721242853144,0.91905931,3423.1,3423.0,1.046]
[1721242853650,1.22587318,3423.2,3423.0,1.046]
[1721242854567,1.22587318,3423.1,3423.0,1.046]
[1721242854776,1.22587318,3423.2,3423.0,1.961308]
[1721242854970,1.53208821,3423.3,3423.1,1.046]
[1721242855488,1.22607198,3423.3,3423.1,1.046]
[1721242856206,0.61296699,3423.2,3423.1,3.96732]
[1721242856364,1.22607198,3423.5,3423.2,3.47124]
[1721242856365,0.61296699,3423.5,3423.2,3.47124]
[1721242856688,0.61296699,3423.6,3423.3,6.45097]
[1721242856852,0.61296699,3423.6,3423.5,1.046]
[1721242857387,0.91949808,3423.7,3423.5,1.046]
[1721242857564,0.61280752,3423.6,3423.5,1.046]
[1721242857889,0.61280752,3423.6,3423.5,2.038218]
[1721242861490,0.91949808,3423.7,3423.5,2.038218]
[1721242861690,0.61265021,3423.6,3423.5,2.038218]
[1721242865274,0.61265021,3423.6,3423.5,1.046]
[1721242866658,0.643349,3423.6,3423.5,1.046]
[1721242869459,0.03069879,3423.6,3423.5,1.046]
[1721242870008,0.643349,3423.6,3423.5,1.046]
[1721242870676,0.03069879,3423.6,3423.5,1.046]
[1721242871502,0.643349,3423.6,3423.5,1.046]
[1721242872699,0.03069879,3423.6,3423.5,1.046]
[1721242876000,0.643349,3423.6,3423.5,1.046]
[1721242876561,0.03069879,3423.6,3423.5,1.046]
[1721242878095,0.643349,3423.6,3423.5,1.046]
[1721242878413,0.03069879,3423.6,3423.5,1.046]
[1721242882114,0.03069879,3423.6,3423.5,3.96698]
[1721242884492,0.643349,3423.6,3423.5,3.96698]
[1721242884708,0.03069879,3423.6,3423.5,1.046]
[1721242884942,0.643349,3423.6,3423.0,2.4818]
[1721242885239,0.61265021,3423.5,3423.0,5.84271]
[1721242885535,0.61265021,3423.5,3423.4,1.046]
[1721242885536,0.91949808,3423.5,3423.4,1.046]
[1721242885732,1.22607198,3423.6,3423.4,1.046]
[1721242885897,1.22607198,3423.5,3423.4,1.046]
[1721242886242,1.22607198,3423.5,3422.6,10.30172]
[1721242886243,2.4937,3423.4,3423.2,1.046]
[1721242886536,1.22482401,3423.3,3423.2,1.046]
[1721242886709,1.53122335,3423.3,3423.0,1.046]
[1721242886909,1.224939,3423.1,3423.0,1.046]
[1721242887122,1.224939,3423.1,3422.8,1.046]
[1721242887325,0.91872755,3422.9,3422.5,2.92182]
[1721242887526,0.61244749,3422.8,3422.5,2.92182]
[1721242887701,0.61244749,3422.8,3422.7,1.046]
[1721242888353,0.61239817,3422.8,3422.7,1.046]
[1721242890127,0.91872755,3422.8,3422.7,1.046]
[1721242890633,0.91872755,3422.9,3422.7,1.046]
[1721242890856,0.91872755,3422.8,3422.3,2.92199]
[1721242891033,0.61234102,3422.6,3422.4,0.55]
[1721242891239,1.224939,3422.9,3422.5,1.046]
[1721242891240,0.61234102,3422.7,3422.5,1.046]
[1721242891404,0.61234102,3422.7,3422.6,1.046]
[1721242892454,0.61234102,3422.8,3422.6,1.046]
[1721242892608,0.61234102,3422.8,3422.4,6.39374]
[1721242892609,0.61234102,3422.8,3422.7,1.046]
[1721242893038,0.61234102,3422.9,3422.7,1.046]
[1721242893242,0.61234102,3422.9,3422.8,1.046]
[1721242893623,0.91872755,3423.0,3422.8,1.046]
[1721242894159,0.91872755,3422.9,3422.8,1.046]
[1721242894650,0.91872755,3423.0,3422.8,1.046]
[1721242894953,1.224939,3423.1,3422.9,1.046]
[1721242896224,4.146279,3423.1,3422.9,1.046]
[1721242896425,4.146349,3423.0,3422.9,1.046]
[1721242896650,4.146349,3423.0,3422.7,1.046]
[1721242896651,6.601349,3423.0,3422.7,1.046]
[1721242896837,0.91808716,3422.8,3422.7,1.046]
[1721242898548,0.91808716,3422.9,3422.7,1.046]
[1721242898955,0.91808716,3422.8,3422.7,1.046]
[1721242899162,0.91808716,3422.9,3422.7,1.046]
[1721242900427,0.6117947,3422.8,3422.7,1.046]
[1721242900659,0.6117947,3422.9,3422.7,1.046]
[1721242900863,0.91808716,3423.0,3422.8,1.046]
[1721242901018,0.61175884,3422.9,3422.8,1.046]
[1721242901216,0.61176399,3422.9,3422.8,1.046]
[1721242901959,0.61176399,3423.0,3422.8,3.96758]
[1721242902261,0.61176399,3423.0,3422.9,1.046]
[1721242902753,0.91808716,3423.1,3422.9,1.046]
[1721242903052,0.02762666,3423.0,3422.9,1.046]
[1721242903860,0.63929037,3423.0,3422.9,1.046]
[1721242904217,0.02762666,3423.0,3422.9,1.046]
[1721242905827,0.63928136,3423.0,3422.9,1.046]
[1721242906031,0.02762666,3423.0,3422.9,1.967537]
[1721242906452,0.02762666,3423.0,3422.9,4.889027]
[1721242907233,0.02762666,3423.0,3422.9,10.219317]
[1721242907428,0.02762666,3423.0,3422.9,13.690807]
[1721242907667,8.28808716,3423.8,3423.5,2.92098]
[1721242907668,0.6116547,3423.7,3423.5,2.92098]
[1721242907871,0.6116547,3423.8,3423.5,3.96698]
[1721242908040,0.02764621,3423.6,3423.5,2.92098]
[1721242908251,0.6116547,3423.8,3423.6,2.92087]
[1721242908433,0.6116547,3423.8,3423.7,1.046]
[1721242909757,0.91808716,3423.9,3423.7,1.046]
[1721242911276,0.91808716,3423.8,3423.7,1.046]
[1721242911945,0.91808716,3423.9,3423.7,1.046]
[1721242912253,0.91808716,3423.8,3423.7,1.046]
[1721242912652,1.224939,3423.9,3423.7,1.046]
[1721242913284,0.9174826,3423.8,3423.0,2.92137]
[1721242913583,4.145599,3423.9,3423.7,1.046]
[1721242914155,0.91750518,3423.8,3423.7,1.046]
[1721242914677,4.145599,3423.9,3423.7,1.046]
[1721242915238,1.224939,3423.8,3423.7,1.046]
[1721242915442,2.92073,3423.8,3423.7,1.046]
[1721242915761,4.145669,3423.8,3423.7,1.046]
[1721242916972,4.145669,3423.8,3423.5,1.046]
[1721242917159,0.91763077,3423.7,3423.5,1.046]
[1721242917365,0.91763077,3423.6,3423.5,1.046]
[1721242917873,0.94529167,3423.6,3423.5,1.046]
[1721242918082,0.63945084,3423.6,3423.5,1.046]
[1721242918416,0.94529167,3423.6,3423.5,1.046]
[1721242918878,0.0276609,3423.6,3423.5,1.046]
[1721242919440,0.94529167,3423.6,3423.5,1.046]
[1721242921554,0.0276609,3423.6,3423.5,1.046]
[1721242923624,2.9485609,3423.6,3423.5,1.046]
[1721242923787,6.5896999,3423.6,3423.3,1.046]
[1721242924114,0.91800567,3423.4,3423.3,1.046]
[1721242924412,0.94573347,3423.4,3423.3,1.046]
[1721242924776,2.9487978,3423.4,3423.3,1.046]
[1721242925079,3.86687343,3423.4,3423.3,1.046]
[1721242925280,2.9487978,3423.4,3423.3,1.046]
[1721242926122,4.1737368,3423.4,3423.3,1.046]
[1721242928012,1.2526668,3423.4,3423.3,1.046]
[1721242928177,0.94598719,3423.4,3423.3,1.046]
[1721242930636,0.94624338,3423.4,3423.3,1.03496042]
[1721242930813,0.94624338,3423.4,3423.3,1.046]
[1721242931736,1.2526668,3423.4,3422.8,2.92153]
[1721242931907,0.61239811,3423.1,3422.8,5.27893]
[1721242932236,0.61239811,3423.1,3423.0,1.046]
[1721242932890,0.64017158,3423.1,3423.0,1.046]
[1721242933229,0.02777347,3423.1,3423.0,1.046]
[1721242933392,0.64017158,3423.1,3423.0,1.046]
[1721242935419,0.02777347,3423.1,3423.0,1.046]
[1721242937097,0.02777347,3423.1,3423.0,6.32071]
[1721242937304,0.02777347,3423.1,3423.0,7.244928]
[1721242937535,0.61239811,3423.3,3423.0,7.244928]
[1721242937741,0.61239811,3423.3,3423.2,1.046]
[1721242938511,0.91859717,3423.4,3423.2,1.046]
[1721242940055,0.61246534,3423.3,3423.2,1.046]
[1721242940212,0.91859717,3423.4,3423.2,1.046]
[1721242941419,0.6125239,3423.3,3423.2,1.046]
[1721242941615,0.6125239,3423.3,3423.2,1.03507548]
[1721242941811,0.6125239,3423.3,3423.2,1.01309332]
[1721242942350,0.91859717,3423.4,3423.2,1.01309332]
[1721242945265,1.224939,3423.5,3423.2,1.01309332]
[1721242945266,0.91859717,3423.3,3423.2,1.01309332]
[1721242945476,0.91859717,3423.3,3423.2,1.046]
[1721242946430,1.224939,3423.3,3422.7,8.12074]
[1721242946752,0.61297627,3423.0,3422.8,5.8431]
[1721242946948,0.61297627,3423.0,3422.9,1.046]
[1721242947138,0.91946441,3423.1,3422.9,1.046]
[1721242947873,0.0270751,3423.0,3422.9,1.046]
[1721242948050,0.64011808,3423.0,3422.9,1.046]
[1721242948254,0.0270751,3423.0,3422.9,1.046]
[1721242950296,0.94653951,3423.0,3422.9,1.046]
[1721242951878,0.94653951,3423.0,3422.9,3.96749]
[1721242952079,0.94653951,3423.0,3422.9,6.973695]
[1721242952449,0.0270751,3423.0,3422.9,6.973695]
[1721242953364,0.0270751,3423.0,3422.9,9.895185]
[1721242953579,0.64049637,3423.0,3422.9,9.895185]
[1721242954097,0.0270751,3423.0,3422.9,9.895185]
[1721242954270,0.64049637,3423.0,3422.9,9.895185]
[1721242954602,0.0270751,3423.0,3422.9,9.895185]
[1721242954773,0.0270751,3423.0,3422.9,10.445185]
[1721242954975,0.61342127,3423.2,3423.1,5.84264]
[1721242955301,0.61342127,3423.2,3423.1,8.4831245]
[1721242955302,0.63955401,3423.2,3423.1,8.4831245]
[1721242955589,0.02613274,3423.2,3423.1,7.43864]
[1721242955812,0.91946441,3423.3,3423.2,2.92124]
[1721242956091,0.94561185,3423.3,3423.2,2.92124]
[1721242959269,0.94561185,3423.3,3423.1,1.046]
[1721242959593,0.92027249,3423.2,3423.1,1.046]
[1721242960000,0.02617848,3423.2,3423.1,1.046]
[1721242960208,1.224939,3423.3,3423.1,1.046]
[1721242960401,1.25111748,3423.2,3423.1,1.046]
[1721242961103,0.02617848,3423.2,3423.1,1.046]
[1721242961292,1.56015866,3423.2,3423.1,1.046]
[1721242963220,0.02617848,3423.2,3423.1,1.046]
[1721242963420,1.53395256,3423.2,3423.1,1.046]
[1721242963567,1.56013104,3423.2,3423.1,1.046]
[1721242963766,1.56013104,3423.2,3422.5,2.9218]
[1721242963985,0.61358399,3422.6,3422.5,2.9218]
[1721242964181,0.61358399,3422.6,3422.5,3.9678]
[1721242964613,0.63973304,3422.6,3422.5,3.9678]
[1721242964774,0.63973304,3422.6,3422.5,1.046]
[1721242964973,0.63970623,3422.6,3422.5,1.046]
[1721242966506,0.02614905,3422.6,3422.5,1.76546434]
[1721242966709,0.02614905,3422.6,3422.5,4.09316434]
[1721242967871,0.02614905,3422.6,3422.5,3.3737]
[1721242968068,0.02614905,3422.6,3422.5,6.29554]
[1721242968535,0.61355718,3422.7,3422.5,6.29554]
[1721242968674,0.02608533,3422.6,3422.5,6.29554]
[1721242969582,0.63964251,3422.6,3422.5,3.96784]
[1721242970093,0.61355718,3422.6,3422.5,3.96784]
[1721242970613,0.63964251,3422.6,3422.5,3.96784]
[1721242970922,0.02608533,3422.6,3422.5,3.96784]
[1721242972089,0.02608533,3422.6,3422.5,1.046]
[1721242972292,0.63964251,3422.6,3422.5,1.046]
[1721242973631,0.02608533,3422.6,3422.5,1.046]
[1721242974411,1.25325331,3422.6,3422.5,1.046]
[1721242977329,0.02608533,3422.6,3422.5,1.046]
[1721242978107,1.25325331,3422.6,3422.5,1.046]
[1721242978306,0.02608533,3422.6,3422.5,1.046]
[1721242979262,0.94520133,3422.6,3422.5,1.046]
[1721242979645,0.02608533,3422.6,3422.5,1.046]
[1721242980633,0.94517084,3422.6,3422.5,1.046]
[1721242981035,0.02608533,3422.6,3422.5,1.046]
[1721242981233,0.63878586,3422.6,3422.5,1.046]
[1721242982026,0.02608533,3422.6,3422.5,3.96784]
[1721242984972,0.02608533,3422.6,3422.5,1.046]
[1721242985136,0.63878586,3422.6,3422.5,1.046]
[1721242985543,0.02608533,3422.6,3422.5,1.046]
[1721242987047,0.63868707,3422.6,3422.5,1.046]
[1721242987268,0.02608533,3422.6,3422.5,1.046]
[1721242988849,0.63865674,3422.6,3422.5,1.046]
[1721242989242,0.63865674,3422.6,3422.5,3.3139]
[1721242990335,0.02608533,3422.6,3422.5,3.3139]
[1721242991336,0.02608533,3422.6,3422.5,6.23574]
[1721242992336,0.61257141,3422.7,3422.5,6.23574]
[1721242992538,0.02598894,3422.6,3422.5,5.18974]
[1721242992784,0.02598894,3422.6,3422.5,6.23574]
[1721242993869,0.61257141,3422.7,3422.5,6.23574]
[1721242994071,0.02599875,3422.6,3422.5,6.23574]
[1721242995155,0.02599875,3422.6,3422.5,1.046]
[1721242995482,0.63857016,3422.6,3422.5,1.046]